bitfinex/quotes_BTCUSD_20250623
["timestamp","ask_amount","ask_price","bid_price","bid_amount"]
[1750685086698,6.59981946,101380.0,101370.0,4.628e-05]
[1750685086934,5.8388308,101370.0,101360.0,0.0041]
[1750685087170,1.08455019,101370.0,101360.0,0.0041]
[1750685087422,1.05285019,101370.0,101360.0,0.0041]
[1750685088462,1.05285019,101370.0,101360.0,0.068]
[1750685088659,0.88917019,101370.0,101360.0,0.068]
[1750685088865,1.09605019,101370.0,101360.0,0.068]
[1750685089304,0.00104,101370.0,101360.0,0.068]
[1750685089512,1.1298708,101370.0,101360.0,0.068]
[1750685092045,1.1288308,101370.0,101360.0,0.068]
[1750685093683,1.1288308,101370.0,101360.0,0.0356]
[1750685093838,1.1288308,101370.0,101360.0,0.0662]
[1750685094037,1.1584988,101370.0,101360.0,0.0662]
[1750685094543,1.15858962,101370.0,101360.0,0.0662]
[1750685096362,1.15858962,101370.0,101360.0,0.0356]
[1750685096793,1.42236901,101370.0,101360.0,0.0041]
[1750685097248,1.44149167,101370.0,101360.0,0.0041]
[1750685097457,1.42236901,101370.0,101360.0,0.0041]
[1750685098510,1.42240901,101370.0,101360.0,0.0041]
[1750685099285,1.48580901,101370.0,101360.0,0.0041]
[1750685100601,6.53580901,101370.0,101360.0,0.0041]
[1750685102035,6.55934312,101370.0,101360.0,0.0041]
[1750685102264,6.65964251,101370.0,101360.0,0.0041]
[1750685104653,7.06392198,101370.0,101360.0,0.0041]
[1750685104870,0.3708,101360.0,101350.0,0.0001]
[1750685105079,0.34,101340.0,101330.0,0.0902009]
[1750685105286,1.1288308,101340.0,101330.0,0.0902009]
[1750685105998,1.16897729,101340.0,101330.0,0.0902009]
[1750685106463,1.16897729,101340.0,101330.0,0.0972009]
[1750685106689,1.16897729,101340.0,101330.0,0.0902009]
[1750685106907,1.16897729,101340.0,101330.0,0.0922009]
[1750685107398,1.16897729,101340.0,101330.0,0.0902009]
[1750685107845,1.19865429,101340.0,101330.0,0.0902009]
[1750685108065,1.19865429,101340.0,101330.0,0.0922009]
[1750685108630,1.19865429,101340.0,101330.0,0.0902009]
[1750685108891,1.46239368,101340.0,101330.0,0.0255009]
[1750685109096,6.57329368,101340.0,101330.0,0.0255009]
[1750685109314,5.7844154,101330.0,101320.0,0.01360898]
[1750685109525,6.04835479,101330.0,101320.0,0.01337998]
[1750685109730,6.04835479,101330.0,101320.0,0.02261302]
[1750685110207,6.65012064,101330.0,101310.0,0.0001]
[1750685110408,6.65012064,101330.0,101300.0,0.00016]
[1750685110409,0.34,101300.0,101290.0,0.0638]
[1750685110628,0.7344154,101300.0,101290.0,0.0638]
[1750685110856,0.34,101300.0,101290.0,0.06426351]
[1750685111060,0.7344154,101300.0,101290.0,0.06426351]
[1750685112609,0.7344154,101300.0,101290.0,0.06626351]
[1750685113211,0.7344154,101300.0,101290.0,0.06926351]
[1750685113440,0.7344154,101300.0,101290.0,0.08380436]
[1750685113638,0.7344154,101300.0,101290.0,0.06906351]
[1750685114054,0.34,101300.0,101290.0,0.18390375]
[1750685114267,0.02895054,101320.0,101310.0,0.0636]
[1750685114268,0.3944154,101320.0,101310.0,0.0636]
[1750685115686,0.3944154,101320.0,101310.0,0.0666]
[1750685116013,0.3954154,101320.0,101310.0,0.0706]
[1750685117541,0.3954154,101320.0,101310.0,0.0383]
[1750685117713,0.3954154,101320.0,101310.0,0.0701]
[1750685118313,0.001,101320.0,101310.0,0.18494024]
[1750685118518,0.3954154,101320.0,101310.0,0.18494024]
[1750685123527,0.7354154,101320.0,101310.0,0.18494024]
[1750685124176,0.341,101320.0,101310.0,0.18494024]
[1750685124389,0.7354154,101320.0,101310.0,0.18494024]
[1750685125235,0.7354154,101320.0,101310.0,0.0701]
[1750685125908,0.341,101320.0,101310.0,0.0701]
[1750685126127,0.7354154,101320.0,101310.0,0.0701]
[1750685129141,0.341,101320.0,101310.0,0.18494024]
[1750685129551,0.7354154,101320.0,101310.0,0.18494024]
[1750685130393,0.341,101320.0,101310.0,0.18494024]
[1750685130601,0.3944154,101320.0,101310.0,0.18494024]
[1750685131838,0.3944154,101330.0,101320.0,0.0625]
[1750685132900,0.0531973,101360.0,101350.0,0.0625]
[1750685133101,0.3944154,101360.0,101350.0,0.0625]
[1750685133307,0.7344154,101360.0,101350.0,0.0625]
[1750685134183,0.3944154,101360.0,101350.0,0.0625]
[1750685134820,0.7344154,101360.0,101350.0,0.0625]
[1750685136331,0.77538903,101360.0,101350.0,0.0625]
[1750685140025,0.77538903,101360.0,101350.0,0.0318]
[1750685140261,0.80568903,101360.0,101340.0,0.0318]
[1750685140490,0.34,101340.0,101330.0,0.06536351]
[1750685140737,0.7344154,101340.0,101330.0,0.06536351]
[1750685141218,0.34,101340.0,101330.0,0.06536351]
[1750685141450,0.7344154,101340.0,101330.0,0.06536351]
[1750685142380,0.7344154,101340.0,101330.0,0.06636351]
[1750685142624,1.1288308,101340.0,101330.0,0.06636351]
[1750685143521,1.1288308,101340.0,101330.0,0.06736351]
[1750685144210,0.34,101340.0,101330.0,0.06736351]
[1750685144437,0.7344154,101340.0,101330.0,0.06736351]
[1750685145846,0.7344154,101340.0,101330.0,0.18220375]
[1750685147949,0.34,101340.0,101330.0,0.18220375]
[1750685148160,0.7344154,101340.0,101330.0,0.18220375]
[1750685149739,0.7344154,101340.0,101330.0,0.06736351]
[1750685151860,1.1288308,101340.0,101330.0,0.00246351]
[1750685152080,1.1288308,101340.0,101330.0,0.03406351]
[1750685152289,0.7344154,101340.0,101330.0,0.06596351]
[1750685152463,0.34,101340.0,101330.0,0.06596351]
[1750685152723,0.7344154,101340.0,101330.0,0.06596351]
[1750685155747,1.1288308,101340.0,101330.0,0.03406351]
[1750685157848,1.1907308,101340.0,101330.0,0.00246351]
[1750685160103,1.1907308,101340.0,101330.0,0.00046351]
[1750685160259,1.21428684,101340.0,101330.0,0.00046351]
[1750685160473,1.21528684,101340.0,101330.0,0.00046351]
[1750685160683,1.47998623,101340.0,101330.0,0.00046351]
[1750685161777,6.63028562,101340.0,101330.0,0.00046351]
[1750685162012,6.52998623,101340.0,101330.0,0.00046351]
[1750685163305,6.54839939,101340.0,101330.0,0.00046351]
[1750685165523,7.04389939,101340.0,101330.0,0.00046351]
[1750685167196,6.68034335,101340.0,101330.0,0.00046351]
[1750685168993,6.703903,101340.0,101330.0,0.00046351]
[1750685169205,7.043903,101340.0,101330.0,0.00046351]
[1750685169416,7.04390301,101340.0,101330.0,0.00046351]
[1750685171358,7.01380301,101340.0,101330.0,0.00046351]
[1750685171567,7.01380014,101340.0,101330.0,0.00046351]
[1750685172244,7.04600014,101340.0,101330.0,0.00046351]
[1750685172431,7.07568214,101340.0,101330.0,0.00046351]
[1750685172575,7.04348214,101340.0,101330.0,0.00046351]
[1750685177274,7.04347963,101340.0,101330.0,0.00046351]
[1750685177987,7.04348207,101340.0,101330.0,0.00046351]
[1750685179364,7.07528207,101340.0,101330.0,0.00046351]
[1750685180062,7.04348207,101340.0,101330.0,0.00046351]
[1750685181296,7.05269093,101340.0,101330.0,0.00046351]
[1750685181522,7.15299032,101340.0,101330.0,0.00046351]
[1750685182009,7.05269093,101340.0,101330.0,0.00046351]
[1750685182896,7.05270163,101340.0,101330.0,0.00046351]
[1750685183345,7.09694163,101340.0,101330.0,0.00046351]
[1750685183808,7.06514163,101340.0,101330.0,0.00046351]
[1750685185603,7.06514567,101340.0,101330.0,0.00046351]
[1750685186396,7.09458398,101340.0,101330.0,0.00046351]
[1750685188369,7.07616572,101340.0,101330.0,0.00046351]
[1750685188514,7.09460354,101340.0,101330.0,0.00046351]
[1750685188934,7.09460354,101340.0,101330.0,0.06326351]
[1750685190107,1.04713274,101340.0,101330.0,0.06326351]
[1750685190339,2.01492523,101340.0,101330.0,0.06326351]
[1750685190539,1.91462584,101340.0,101330.0,0.06326351]
[1750685190788,1.87573067,101340.0,101330.0,0.06326351]
[1750685191129,1.69205303,101340.0,101330.0,0.06326351]
[1750685191581,1.48365303,101340.0,101330.0,0.06326351]
[1750685191789,1.06567558,101340.0,101330.0,0.06326351]
[1750685191958,1.46009098,101340.0,101330.0,0.06326351]
[1750685192174,1.4600979,101340.0,101330.0,0.06326351]
[1750685192377,1.44165316,101340.0,101330.0,0.06326351]
[1750685196665,0.3944154,101340.0,101330.0,0.06326351]
[1750685196853,0.029678,101350.0,101340.0,0.0637]
[1750685197087,0.3944154,101350.0,101340.0,0.0637]
[1750685197519,0.7344154,101350.0,101340.0,0.0637]
[1750685198124,0.7344154,101350.0,101340.0,0.0657]
[1750685200082,0.7344154,101350.0,101340.0,0.0667]
[1750685201514,0.73338236,101350.0,101340.0,0.0667]
[1750685203337,0.34,101350.0,101340.0,0.18154024]
[1750685204193,0.34,101350.0,101340.0,0.18054024]
[1750685204395,0.34,101350.0,101340.0,0.17854024]
[1750685204610,0.34,101350.0,101340.0,0.18154024]
[1750685204795,0.34,101350.0,101340.0,0.18554024]
[1750685209609,0.7344154,101350.0,101340.0,0.18554024]
[1750685211827,0.7344154,101350.0,101340.0,0.0707]
[1750685213557,0.7344154,101350.0,101340.0,0.0667]
[1750685214014,0.7344154,101350.0,101340.0,0.0677]
[1750685214223,0.7344154,101350.0,101340.0,0.0647]
[1750685214435,0.34,101350.0,101340.0,0.0647]
[1750685214638,0.7344154,101350.0,101340.0,0.0647]
[1750685215275,0.7344154,101350.0,101340.0,0.0637]
[1750685215491,0.7344154,101350.0,101340.0,0.0667]
[1750685215698,0.7344154,101350.0,101340.0,0.0677]
[1750685216148,0.7344154,101350.0,101340.0,0.0667]
[1750685216380,0.7344154,101350.0,101340.0,0.0697]
[1750685220723,0.34,101350.0,101340.0,0.0697]
[1750685221609,0.7344154,101350.0,101340.0,0.0697]
[1750685225447,0.7646154,101350.0,101340.0,0.006]
[1750685226894,0.7344154,101350.0,101340.0,0.003]
[1750685227307,0.7344154,101350.0,101330.0,0.06526351]
[1750685227308,0.34,101340.0,101330.0,0.06526351]
[1750685227482,0.7344154,101340.0,101330.0,0.06526351]
[1750685229180,0.7344154,101340.0,101330.0,0.06826351]
[1750685229703,0.7344154,101340.0,101330.0,0.07126351]
[1750685230466,0.7344154,101340.0,101330.0,0.03956351]
[1750685231512,0.7344154,101340.0,101330.0,0.03356351]
[1750685231918,0.3944154,101340.0,101330.0,0.03456351]
[1750685232122,0.3944154,101340.0,101330.0,0.06466351]
[1750685232323,0.15241444,101340.0,101330.0,0.06466351]
[1750685232727,0.15241444,101340.0,101330.0,0.06566351]
[1750685239176,0.7344154,101350.0,101330.0,0.06566351]
[1750685239317,0.7344154,101350.0,101340.0,0.0644]
[1750685240462,0.7354154,101350.0,101340.0,0.0644]
[1750685240663,0.7344154,101350.0,101340.0,0.0644]
[1750685240867,0.341,101350.0,101340.0,0.0644]
[1750685241072,0.342,101350.0,101340.0,0.0644]
[1750685241831,0.341,101350.0,101340.0,0.17924024]
[1750685242030,0.002,101350.0,101340.0,0.17924024]
[1750685242388,0.002,101350.0,101340.0,0.34344024]
[1750685244432,0.002,101350.0,101340.0,0.78153564]
[1750685244863,0.5963661,101370.0,101360.0,0.0634]
[1750685245081,0.10880932,101380.0,101370.0,0.0634]
[1750685245293,0.47355672,101380.0,101370.0,0.0323]
[1750685245934,0.47355672,101380.0,101360.0,0.19522]
[1750685245935,0.47355672,101380.0,101360.0,0.22842]
[1750685246150,0.3944154,101370.0,101360.0,0.22842]
[1750685246776,0.7344154,101370.0,101360.0,0.22842]
[1750685247807,0.7344154,101370.0,101360.0,0.22942]
[1750685248858,0.76363679,101370.0,101360.0,0.23142]
[1750685252094,0.36922139,101370.0,101360.0,0.23142]
[1750685252307,0.76363679,101370.0,101360.0,0.23142]
[1750685252716,0.36922139,101370.0,101360.0,0.23142]
[1750685252942,0.76363679,101370.0,101360.0,0.23142]
[1750685254390,0.36922139,101370.0,101360.0,0.23142]
[1750685254567,0.76363679,101370.0,101360.0,0.23142]
[1750685255363,0.36922139,101370.0,101360.0,0.23142]
[1750685255561,0.76363679,101370.0,101360.0,0.23142]
[1750685256735,0.42363679,101370.0,101360.0,0.23142]
[1750685259532,0.42363679,101370.0,101360.0,0.0673]
[1750685259752,0.81805219,101370.0,101360.0,0.003]
[1750685260187,1.19085219,101370.0,101360.0,0.003]
[1750685260431,5.55,101340.0,101320.0,0.0608]
[1750685260657,0.7344154,101330.0,101320.0,0.00046351]
[1750685262342,0.7344154,101330.0,101320.0,0.00146351]
[1750685263352,0.7344154,101330.0,101320.0,0.00246351]
[1750685265960,0.7344154,101330.0,101320.0,0.03436351]
[1750685266161,0.3944154,101330.0,101320.0,0.06526351]
[1750685266412,0.413958,101340.0,101320.0,0.06526351]
[1750685266634,0.3944154,101330.0,101320.0,0.06526351]
[1750685267409,0.3944154,101330.0,101320.0,0.06426351]
[1750685267762,0.3944154,101330.0,101320.0,0.03336351]
[1750685268475,0.3944154,101330.0,101320.0,0.03436351]
[1750685269014,0.3944154,101330.0,101320.0,0.06466351]
[1750685269997,0.8083734,101340.0,101320.0,0.06466351]
[1750685269998,0.7640934,101340.0,101330.0,0.0326]
[1750685270412,0.4240934,101340.0,101330.0,0.063]
[1750685270640,0.3944154,101340.0,101330.0,0.063]
[1750685271271,0.3954154,101340.0,101330.0,0.063]
[1750685271474,0.4250894,101340.0,101330.0,0.063]
[1750685272503,0.8205048,101340.0,101320.0,0.06336351]
[1750685272683,0.3944154,101330.0,101320.0,0.06336351]
[1750685274350,0.3944154,101330.0,101320.0,0.06436351]
[1750685274575,0.3944154,101330.0,101320.0,0.03416351]
[1750685274784,0.3944154,101330.0,101320.0,0.00246351]
[1750685274982,0.4256154,101330.0,101320.0,0.00246351]
[1750685275205,0.4568154,101330.0,101320.0,0.00246351]
[1750685275669,0.4256154,101330.0,101320.0,0.00246351]
[1750685276370,0.4256154,101330.0,101320.0,0.00046351]
[1750685276371,0.52591479,101330.0,101320.0,0.00046351]
[1750685276522,0.52691479,101330.0,101320.0,0.00046351]
[1750685277137,0.52791479,101330.0,101320.0,0.00046351]
[1750685278642,0.49671479,101330.0,101320.0,0.00046351]
[1750685279770,0.10229939,101330.0,101320.0,0.00046351]
[1750685279980,0.49671479,101330.0,101320.0,0.00046351]
[1750685280236,0.3964154,101330.0,101320.0,0.00046351]
[1750685280471,0.002,101330.0,101320.0,0.06426351]
[1750685280833,0.3964154,101330.0,101320.0,0.06426351]
[1750685281474,0.3954154,101330.0,101320.0,0.06426351]
[1750685281700,0.001,101330.0,101320.0,0.06426351]
[1750685281912,0.21443821,101340.0,101320.0,0.11530375]
[1750685282124,0.3944154,101340.0,101330.0,0.0605]
[1750685282341,0.369675,101350.0,101340.0,0.0605]
[1750685282554,0.7640904,101350.0,101340.0,0.0605]
[1750685283945,0.7650904,101350.0,101340.0,0.0605]
[1750685284139,0.7660904,101350.0,101340.0,0.0305]
[1750685284348,0.7660904,101350.0,101330.0,0.0654]
[1750685284674,0.3944154,101340.0,101330.0,0.0654]
[1750685285633,0.7888308,101340.0,101320.0,0.06506351]
[1750685285813,0.3944154,101330.0,101320.0,0.06506351]
[1750685287084,0.7344154,101330.0,101320.0,0.06506351]
[1750685287280,0.7344154,101330.0,101320.0,0.06806351]
[1750685287705,0.7344154,101330.0,101320.0,0.07106351]
[1750685288489,0.7344154,101330.0,101320.0,0.06806351]
[1750685288687,0.34,101330.0,101320.0,0.06806351]
[1750685288937,0.7344154,101330.0,101320.0,0.06806351]
[1750685289112,0.7344154,101330.0,101320.0,0.06506351]
[1750685289447,0.7344154,101330.0,101320.0,0.06606351]
[1750685289885,0.7344154,101330.0,101320.0,0.06706351]
[1750685294003,0.34,101330.0,101320.0,0.18190375]
[1750685294349,0.7344154,101330.0,101320.0,0.03526351]
[1750685294993,0.7344154,101330.0,101320.0,0.06786351]
[1750685296853,0.7344154,101330.0,101320.0,0.00246351]
[1750685298013,0.86491479,101330.0,101320.0,0.00246351]
[1750685298269,0.92629679,101330.0,101320.0,0.00246351]
[1750685300187,0.89661479,101330.0,101320.0,0.00246351]
[1750685301362,0.86491479,101330.0,101320.0,0.00246351]
[1750685301767,0.7344154,101330.0,101320.0,0.00246351]
[1750685303136,0.34,101330.0,101320.0,0.00246351]
[1750685303314,0.7344154,101330.0,101320.0,0.00246351]
[1750685305362,0.34,101330.0,101320.0,0.00246351]
[1750685305563,0.7344154,101330.0,101320.0,0.00246351]
[1750685307757,1.29063019,101330.0,101320.0,0.00246351]
[1750685307971,0.94442963,101330.0,101320.0,0.00246351]
[1750685308372,0.91977661,101330.0,101320.0,0.00246351]
[1750685309137,0.91977661,101330.0,101320.0,0.00186907]
[1750685311714,0.89621479,101330.0,101320.0,0.00186907]
[1750685312784,0.86561479,101330.0,101320.0,0.00186907]
[1750685314428,0.88916497,101330.0,101320.0,0.00186907]
[1750685314629,0.92206497,101330.0,101320.0,0.00186907]
[1750685314834,0.89851479,101330.0,101320.0,0.00186907]
[1750685315053,0.92819779,101330.0,101320.0,0.00186907]
[1750685315474,0.9517502,101330.0,101320.0,0.00186907]
[1750685315882,6.0017502,101330.0,101320.0,0.00186907]
[1750685317583,5.39,101320.0,101290.0,0.0319]
[1750685317794,0.7344154,101300.0,101290.0,0.0619]
[1750685317997,0.7344154,101300.0,101290.0,0.0319]
[1750685318458,0.7344154,101300.0,101290.0,0.0619]
[1750685319092,0.7344154,101300.0,101290.0,0.0329]
[1750685319526,0.7344154,101300.0,101290.0,0.0339]
[1750685320680,0.7344154,101300.0,101290.0,0.0661]
[1750685336373,0.34,101300.0,101290.0,0.0661]
[1750685336596,0.7344154,101300.0,101290.0,0.0661]
[1750685336816,0.4384154,101310.0,101290.0,0.0661]
[1750685337059,0.4384154,101310.0,101300.0,0.0619]
[1750685337514,0.3944154,101310.0,101300.0,0.0619]
[1750685338448,0.3974154,101310.0,101300.0,0.0619]
[1750685338832,0.34,101310.0,101300.0,0.0619]
[1750685339012,0.7344154,101310.0,101300.0,0.0629]
[1750685339382,0.7344154,101310.0,101300.0,0.0639]
[1750685346670,0.34,101310.0,101300.0,0.0639]
[1750685346905,0.7344154,101310.0,101300.0,0.0639]
[1750685348074,0.7344154,101310.0,101300.0,0.0629]
[1750685348325,0.7344154,101310.0,101300.0,0.0639]
[1750685348620,0.34,101310.0,101300.0,0.0629]
[1750685348861,0.7344154,101310.0,101300.0,0.0639]
[1750685349086,0.7344154,101310.0,101300.0,0.0659]
[1750685350087,0.7344154,101320.0,101310.0,0.0636]
[1750685353860,0.34,101320.0,101310.0,0.0636]
[1750685354101,0.7344154,101320.0,101310.0,0.0636]
[1750685355213,0.7344154,101320.0,101310.0,0.0656]
[1750685355824,0.34,101320.0,101310.0,0.0676]
[1750685356026,0.7344154,101320.0,101310.0,0.0676]
[1750685357187,0.3944154,101320.0,101310.0,0.0676]
[1750685357815,0.0004605,101330.0,101320.0,0.0613]
[1750685358159,0.0004605,101330.0,101320.0,0.17614024]
[1750685359815,0.3948759,101330.0,101320.0,0.17614024]
[1750685360233,0.0004605,101330.0,101320.0,0.57055564]
[1750685360440,0.0004605,101330.0,101320.0,0.57255564]
[1750685361260,0.0004605,101330.0,101320.0,0.77195003]
[1750685361471,0.0004605,101330.0,101320.0,0.79168907]
[1750685361674,0.0004605,101330.0,101320.0,0.7995584]
[1750685361883,0.0004605,101330.0,101320.0,1.14742743]
[1750685362304,0.0004605,101330.0,101320.0,1.12181965]
[1750685362513,0.0004605,101330.0,101320.0,0.91055564]
[1750685362932,0.0004605,101330.0,101320.0,1.33269974]
[1750685363153,0.0004605,101330.0,101320.0,1.12968936]
[1750685363381,0.0004605,101330.0,101320.0,1.35643888]
[1750685363609,0.0004605,101330.0,101320.0,1.35443888]
[1750685363828,0.0004605,101330.0,101320.0,1.34943888]
[1750685364058,0.0004605,101330.0,101320.0,1.35930821]
[1750685364660,0.0004605,101330.0,101320.0,1.3593083]
[1750685365104,0.0004605,101330.0,101320.0,1.35643888]
[1750685365737,0.0004605,101330.0,101320.0,1.13930535]
[1750685365988,0.0004605,101330.0,101320.0,1.16959458]
[1750685366210,0.0004605,101330.0,101320.0,0.76530947]
[1750685366444,0.0004605,101330.0,101320.0,1.15972487]
[1750685366666,0.0004605,101330.0,101320.0,1.12947564]
[1750685366924,0.0004605,101330.0,101320.0,1.08591564]
[1750685372408,0.0004605,101330.0,101320.0,1.07891564]
[1750685372533,0.0004605,101330.0,101320.0,1.08591564]
[1750685372789,0.0004605,101330.0,101320.0,1.08191564]
[1750685372988,0.0004605,101330.0,101320.0,1.28917974]
[1750685373190,0.0004605,101330.0,101320.0,1.08491564]
[1750685373405,0.0004605,101330.0,101320.0,1.07791564]
[1750685373626,0.0004605,101330.0,101320.0,1.07328759]
[1750685373833,0.0004605,101330.0,101320.0,1.07628759]
[1750685374299,0.0004605,101330.0,101320.0,1.08328759]
[1750685374914,0.0004605,101330.0,101320.0,1.28068198]
[1750685375325,0.0004605,101330.0,101320.0,1.08028759]
[1750685375519,0.0004605,101330.0,101320.0,1.27568198]
[1750685375823,0.0004605,101330.0,101320.0,1.28168198]
[1750685376696,0.0004605,101330.0,101320.0,1.08428759]
[1750685376924,0.0004605,101330.0,101320.0,1.12760759]
[1750685377701,0.0004605,101330.0,101320.0,1.32500198]
[1750685378107,0.0004605,101330.0,101320.0,0.91992759]
[1750685378334,0.0004605,101330.0,101320.0,1.12752759]
[1750685380511,0.0004605,101330.0,101320.0,0.52551219]
[1750685380727,0.0004605,101330.0,101320.0,1.12748759]
[1750685381140,0.0004605,101330.0,101320.0,0.78748759]
[1750685381307,0.0004605,101330.0,101320.0,0.57992759]
[1750685381488,0.0004605,101330.0,101320.0,0.74396759]
[1750685382774,0.0004605,101330.0,101320.0,0.18551219]
[1750685382981,0.3948759,101330.0,101320.0,0.27537939]
[1750685383185,0.4274759,101330.0,101320.0,0.011]
[1750685383338,0.4274759,101330.0,101320.0,0.17508]
[1750685383339,0.4594759,101330.0,101320.0,0.17508]
[1750685383550,0.4594759,101330.0,101320.0,0.18462085]
[1750685383956,0.4594759,101330.0,101320.0,0.009]
[1750685384434,0.4594759,101330.0,101320.0,0.17308]
[1750685384792,0.4594759,101330.0,101320.0,0.003]
[1750685384991,0.4594759,101330.0,101320.0,0.006]
[1750685385155,0.4594759,101330.0,101320.0,0.003]
[1750685385556,0.4594759,101330.0,101320.0,0.004]
[1750685385952,0.4604759,101330.0,101320.0,0.004]
[1750685386185,0.4604759,101330.0,101320.0,0.003]
[1750685387524,0.0660605,101330.0,101320.0,0.003]
[1750685387662,0.4604759,101330.0,101320.0,0.003]
[1750685388511,0.4284759,101330.0,101320.0,0.003]
[1750685388945,0.0340605,101330.0,101320.0,0.003]
[1750685389436,0.0014605,101330.0,101320.0,0.003]
[1750685389643,0.0014605,101330.0,101320.0,0.0344]
[1750685389867,0.0014605,101330.0,101320.0,0.003]
[1750685398671,0.0014605,101330.0,101320.0,0.0358]
[1750685399605,0.0014605,101330.0,101320.0,0.0663]
[1750685399816,0.0014605,101330.0,101320.0,0.08084085]
[1750685400033,0.0014605,101330.0,101320.0,0.57555564]
[1750685400248,0.0014605,101330.0,101320.0,0.18114024]
[1750685400467,0.0014605,101330.0,101320.0,0.57555564]
[1750685400699,0.0014605,101330.0,101320.0,0.18114024]
[1750685400918,0.3958759,101330.0,101320.0,0.003]
[1750685401363,0.0338605,101330.0,101320.0,0.004]
[1750685401578,0.89897529,101330.0,101320.0,0.004]
[1750685401796,0.89897529,101330.0,101320.0,0.001]
[1750685401797,6.45891806,101330.0,101320.0,0.001]
[1750685402039,6.06450266,101330.0,101320.0,0.001]
[1750685402256,5.87681053,101330.0,101320.0,0.002]
[1750685402471,6.50998844,101330.0,101320.0,0.001]
[1750685402687,0.404,101310.0,101290.0,0.0001]
[1750685402897,0.4268154,101300.0,101290.0,0.0001]
[1750685403120,0.3944154,101300.0,101290.0,0.0001]
[1750685403645,0.4263154,101300.0,101290.0,0.0001]
[1750685404085,0.3944154,101300.0,101290.0,0.0001]
[1750685407256,0.3944154,101310.0,101290.0,0.0001]
[1750685407462,0.3944154,101310.0,101290.0,0.07714085]
[1750685407664,0.34,101310.0,101290.0,0.07714085]
[1750685407874,0.7344154,101310.0,101290.0,0.07714085]
[1750685408080,0.34,101320.0,101300.0,0.0638]
[1750685408290,0.34,101320.0,101300.0,0.55851479]
[1750685408507,0.7344154,101320.0,101300.0,0.16409939]
[1750685408717,0.002,101310.0,101300.0,0.17864024]
[1750685409133,0.7344154,101320.0,101300.0,0.17864024]
[1750685409340,0.7344154,101320.0,101300.0,0.18064024]
[1750685409774,0.3944154,101310.0,101300.0,0.17864024]
[1750685409982,0.7344154,101320.0,101300.0,0.18364024]
[1750685410191,0.7344154,101320.0,101300.0,0.17864024]
[1750685410403,0.83411283,101320.0,101300.0,0.17864024]
[1750685411028,0.86661283,101320.0,101300.0,0.11584024]
[1750685411237,0.83411283,101320.0,101300.0,0.11584024]
[1750685411444,0.83411283,101320.0,101300.0,0.11484024]
[1750685411656,0.83411283,101320.0,101300.0,0.18284024]
[1750685412501,0.34,101320.0,101300.0,0.18284024]
[1750685414194,0.52651283,101310.0,101300.0,0.002]
[1750685414402,0.99781222,101310.0,101300.0,0.002]
[1750685414830,1.01191222,101310.0,101300.0,0.002]
[1750685415466,1.01191222,101310.0,101290.0,0.0001]
[1750685415674,0.49411283,101300.0,101290.0,0.0001]
[1750685417199,0.49411283,101300.0,101290.0,0.0021]
[1750685417428,0.52079939,101310.0,101290.0,0.0021]
[1750685417641,0.49411283,101300.0,101290.0,0.0021]
[1750685418094,0.49611283,101300.0,101290.0,0.0021]
[1750685418306,0.49611283,101300.0,101290.0,0.0001]
[1750685418590,0.002,101300.0,101290.0,0.0001]
[1750685420953,0.002,101300.0,101290.0,0.67305307]
[1750685421407,0.002,101300.0,101290.0,0.92453856]
[1750685421674,0.0004605,101330.0,101290.0,0.870411]
[1750685421916,0.0004605,101330.0,101310.0,0.01454085]
[1750685422151,0.0004605,101330.0,101320.0,0.0629]
[1750685423548,0.0004605,101330.0,101320.0,0.0337]
[1750685423780,0.0004605,101330.0,101320.0,0.002]
[1750685424222,0.49457333,101330.0,101320.0,0.002]
[1750685424937,0.49457333,101330.0,101320.0,0.18084024]
[1750685424938,0.0004605,101330.0,101320.0,0.18084024]
[1750685425845,0.0004605,101330.0,101320.0,0.17964024]
[1750685426288,0.0004605,101330.0,101320.0,0.34600024]
[1750685427227,0.32965711,101350.0,101320.0,0.34600024]
[1750685427472,0.49411283,101350.0,101330.0,0.01454085]
[1750685427695,0.49778819,101360.0,101330.0,0.01454085]
[1750685427910,0.49411283,101350.0,101330.0,0.07564085]
[1750685428124,5.05,101350.0,101330.0,0.17594024]
[1750685428569,0.003,101350.0,101330.0,0.17594024]
[1750685428797,0.003,101350.0,101320.0,0.03123683]
[1750685428798,0.50011283,101350.0,101320.0,0.03123683]
[1750685429018,0.003,101350.0,101320.0,0.16453622]
[1750685429230,0.49711283,101350.0,101320.0,0.33097622]
[1750685429447,0.50111283,101350.0,101320.0,0.33097622]
[1750685429664,0.49711283,101350.0,101320.0,0.33097622]
[1750685429876,0.49811283,101350.0,101320.0,0.33097622]
[1750685430340,0.49511283,101350.0,101320.0,0.33097622]
[1750685430546,0.49811283,101350.0,101320.0,0.33097622]
[1750685430975,0.001,101350.0,101320.0,0.33097622]
[1750685431200,0.001,101350.0,101330.0,0.17634024]
[1750685431470,0.001,101350.0,101340.0,0.04484085]
[1750685431694,0.001,101350.0,101340.0,0.21120085]
[1750685431915,0.003,101350.0,101340.0,0.34270024]
[1750685432188,0.002,101350.0,101340.0,0.34270024]
[1750685432899,0.002,101350.0,101340.0,1.08819627]
[1750685433117,0.002,101350.0,101340.0,0.88497307]
[1750685433333,5e-05,101360.0,101350.0,0.0631]
[1750685433540,5e-05,101360.0,101350.0,0.16339939]
[1750685435061,5e-05,101360.0,101350.0,0.16439939]
[1750685435963,5e-05,101360.0,101350.0,0.28636024]
[1750685436199,5e-05,101360.0,101350.0,0.005]
[1750685437096,5e-05,101360.0,101350.0,0.01554085]
[1750685437313,5e-05,101360.0,101350.0,0.01454085]
[1750685438218,5e-05,101360.0,101350.0,0.17864024]
[1750685438439,5e-05,101360.0,101350.0,0.34520024]
[1750685438661,5e-05,101360.0,101350.0,0.34620024]
[1750685439330,5e-05,101360.0,101350.0,0.34520024]
[1750685439750,5e-05,101360.0,101350.0,0.35020024]
[1750685441781,5e-05,101360.0,101350.0,0.35032024]
[1750685442423,5e-05,101360.0,101350.0,0.84443307]
[1750685442642,5e-05,101360.0,101350.0,0.35032024]
[1750685443085,5e-05,101360.0,101350.0,0.84443307]
[1750685443313,5e-05,101360.0,101350.0,1.04176903]
[1750685443534,5e-05,101360.0,101350.0,1.39163573]
[1750685443739,5e-05,101360.0,101350.0,1.50550233]
[1750685443956,5e-05,101360.0,101350.0,1.52523504]
[1750685444177,5e-05,101360.0,101350.0,1.50550233]
[1750685444411,5e-05,101360.0,101350.0,1.52523494]
[1750685444621,5e-05,101360.0,101350.0,1.53510105]
[1750685445059,5e-05,101360.0,101350.0,1.29829977]